bitfinex/quotes_SOLUSD_20230104
["timestamp","ask_amount","ask_price","bid_price","bid_amount"]
[1672800098234,83.81,13.951,13.944,10.03223751]
[1672800098467,7.17154332,13.945,13.944,10.03223751]
[1672800105599,0.00154332,13.945,13.944,10.03223751]
[1672800111811,0.00154332,13.945,13.944,21.00711241]
[1672800112027,53.78,13.96,13.945,30.0]
[1672800112219,36.92115313,13.99,13.947,30.0]
[1672800112220,53.76,13.963,13.947,30.0]
[1672800112429,53.76,13.963,13.948,30.31]
[1672800112635,53.76,13.963,13.948,20.0]
[1672800113065,7.16948667,13.949,13.948,20.0]
[1672800113389,7.16948667,13.949,13.947,20.0]
[1672800113586,7.16948667,13.948,13.945,20.0]
[1672800114125,0.00048667,13.946,13.945,20.0]
[1672800114336,53.77,13.961,13.945,29.546]
[1672800114529,30.0,13.967,13.944,10.03223751]
[1672800114530,7.17102905,13.946,13.944,10.03223751]
[1672800115065,7.17102905,13.945,13.944,10.03223751]
[1672800137483,7.17102905,13.945,13.944,3.751e-05]
[1672800137699,7.17102905,13.945,13.938,11.17843648]
[1672800138116,7.17102905,13.939,13.938,11.17843648]
[1672800144306,7.17102905,13.939,13.938,41.17843648]
[1672800144522,7.17102905,13.939,13.938,11.17843648]
[1672800144733,7.17102905,13.939,13.938,131.17843648]
[1672800145667,2.905e-05,13.939,13.938,151.17843648]
[1672800145881,53.79,13.957,13.939,30.0]
[1672800146093,30.0,13.967,13.939,150.0]
[1672800146094,149.9788,13.961,13.939,150.0]
[1672800146303,7.1741158,13.94,13.938,31.17843648]
[1672800146640,53.78,13.959,13.939,20.0]
[1672800146847,53.78,13.959,13.939,140.0]
[1672800147157,7.1741158,13.94,13.939,20.0]
[1672800147774,7.1741158,13.94,13.939,140.0]
[1672800148525,53.8,13.953,13.94,30.0]
[1672800148734,7.17360115,13.941,13.94,30.0]
[1672800148951,97.3898,13.955,13.94,30.0]
[1672800149171,7.17360115,13.941,13.94,30.0]
[1672800149371,1.15e-06,13.941,13.94,30.0]
[1672800150006,1.15e-06,13.941,13.939,20.0]
[1672800150324,1.15e-06,13.94,13.939,20.0]
[1672800150956,1.15e-06,13.94,13.939,140.0]
[1672800153771,1.15e-06,13.94,13.939,252.9766]
[1672800153985,1.15e-06,13.94,13.939,120.0]
[1672800156729,1.15e-06,13.94,13.938,131.17843648]
[1672800156926,1.15e-06,13.939,13.938,131.17843648]
[1672800157564,1.15e-06,13.939,13.938,11.17843648]
[1672800174929,1.15e-06,13.939,13.938,131.17843648]
[1672800175470,1.15e-06,13.939,13.938,11.17843648]
[1672800178397,1.15e-06,13.939,13.938,131.17843648]
[1672800179130,1.15e-06,13.939,13.938,11.17843648]
[1672800187963,1.15e-06,13.939,13.938,131.17843648]
[1672800188918,1.15e-06,13.939,13.938,11.17843648]
[1672800189637,1.15e-06,13.939,13.938,127.40383648]
[1672800192698,1.15e-06,13.939,13.938,158.37871138]
[1672800193861,1.15e-06,13.939,13.938,138.37871138]
[1672800194171,1.15e-06,13.939,13.938,156.91163278]
[1672800196572,1.15e-06,13.939,13.938,187.88650768]
[1672800202771,1.15e-06,13.939,13.938,233.33928078]
[1672800204364,53.74,13.969,13.941,0.05999885]
[1672800204586,191.0,13.97,13.941,0.05999885]
[1672800204587,53.78,13.959,13.941,0.05999885]
[1672800204770,7.17308658,13.942,13.941,0.05999885]
[1672800204981,53.78,13.959,13.942,82.51907911]
[1672800205202,0.00257209,13.943,13.942,89.69216569]
[1672800205435,53.78,13.959,13.943,10.97230281]
[1672800205621,0.00205767,13.944,13.943,40.97230281]
[1672800205957,53.78,13.959,13.944,10.97281723]
[1672800206172,7.17154332,13.945,13.944,10.97281723]
[1672800206388,0.00154332,13.945,13.943,40.9748749]
[1672800206697,53.78,13.959,13.944,10.9748749]
[1672800206888,7.17154332,13.945,13.944,10.9748749]
[1672800207098,0.00154332,13.945,13.944,10.9748749]
[1672800207735,53.78,13.959,13.945,30.0]
[1672800207946,53.75,13.968,13.948,53.243778]
[1672800208165,53.75,13.968,13.947,30.0]
[1672800208166,53.74,13.969,13.95,54.7383152]
[1672800208361,53.74,13.969,13.949,10.9748749]
[1672800208571,7.16845879,13.951,13.95,97.49349574]
[1672800208783,53.75,13.967,13.951,30.0]
[1672800209119,7.16794496,13.952,13.951,97.49349574]
[1672800209305,59.06219646,13.967,13.952,30.0]
[1672800209510,59.06219646,13.967,13.953,67.49349574]
[1672800209724,7.16691751,13.954,13.953,67.49349574]
[1672800210055,59.06219646,13.967,13.955,67.49349574]
[1672800210269,7.16589037,13.956,13.955,67.49349574]
[1672800210477,7.16589037,13.956,13.953,24.3587851]
[1672800210675,7.16589037,13.954,13.953,24.3587851]
[1672800211299,60.96589037,13.954,13.953,24.3587851]
[1672800212141,7.16589037,13.954,13.953,24.3587851]
[1672800226883,191.0,13.97,13.954,27.16]
[1672800227078,191.0,13.97,13.956,72.38358657]
[1672800227296,191.0,13.97,13.957,832.5]
[1672800227507,191.0,13.97,13.959,30.0]
[1672800227722,191.0,13.97,13.96,896.54065887]
[1672800227950,191.0,13.97,13.962,30.0]
[1672800228249,191.0,13.97,13.964,30.0]
[1672800228458,191.0,13.97,13.965,84.04065887]
[1672800228669,191.0,13.97,13.966,30.0]
[1672800228876,191.0,13.97,13.967,84.04065887]
[1672800229199,7.15973366,13.968,13.964,84.04065887]
[1672800229413,7.15973366,13.968,13.965,30.0]
[1672800229600,7.15973366,13.966,13.965,30.0]
[1672800229810,7.15973366,13.966,13.965,64.69297477]
[1672800230976,7.15973366,13.966,13.965,75.66784967]
[1672800231193,7.15973366,13.966,13.965,64.69297477]
[1672800231394,0.00973366,13.966,13.965,75.66784967]
[1672800231597,0.00973366,13.966,13.965,125.66784967]
[1672800231802,191.0,13.97,13.966,30.0]
[1672800232020,191.0,13.97,13.967,64.69297477]
[1672800232224,191.0,13.97,13.969,64.69297477]
[1672800232640,198.15870857,13.97,13.969,64.69297477]
[1672800233289,198.15870857,13.97,13.969,75.66784967]
[1672800233818,121.90510857,13.97,13.969,75.66784967]
[1672800234034,90.43140857,13.97,13.969,95.66784967]
[1672800234234,53.66,13.99,13.97,33.26859143]
[1672800234452,53.63,13.998,13.972,30.0]
[1672800234658,20.0,13.997,13.973,68.75019875]
[1672800234853,53.64,13.996,13.974,30.0]
[1672800235064,20.0,13.995,13.975,68.75019875]
[1672800235281,53.65,13.994,13.975,68.75019875]
[1672800235508,7.15563507,13.976,13.975,68.75019875]
[1672800235816,0.00563507,13.976,13.975,68.75019875]
[1672800236026,53.65,13.994,13.975,79.72507365]
[1672800236221,0.00563507,13.976,13.975,79.72507365]
[1672800236436,0.00563507,13.976,13.975,157.20726187]
[1672800236653,30.0,14.022,13.976,0.05436493]
[1672800236868,111.2292,14.014,13.987,30.0]
[1672800237188,28.79246237,14.028,13.99,77.81827044]
[1672800237389,7.14796284,13.991,13.99,77.81827044]
[1672800237597,0.56596451,14.016,13.991,124.31293073]
[1672800237814,53.57,14.015,13.994,79.93880245]
[1672800238219,0.00591968,13.995,13.994,90.91367735]
[1672800238431,53.57,14.015,13.996,79.93880245]
[1672800238654,53.57,14.015,13.995,66.24209768]
[1672800238655,53.57,14.015,13.998,79.93880245]
[1672800238866,7.1438777,13.999,13.998,79.93880245]
[1672800239065,7.1438777,13.999,13.998,143.31539303]
[1672800239269,53.57,14.013,14.0,79.93880245]
[1672800239480,7.14285715,14.001,14.0,79.93880245]
[1672800239703,58.26285715,14.001,13.996,79.93880245]
[1672800239898,7.14285715,13.997,13.996,79.93880245]
[1672800240106,7.14285715,13.997,13.995,79.93880245]
[1672800240338,7.14285715,13.997,13.995,93.99956515]
[1672800240553,53.57,14.013,13.995,93.99956515]
[1672800240554,7.14285715,13.996,13.995,93.99956515]
[1672800240753,0.00285715,13.996,13.995,93.99956515]
[1672800241366,0.00285715,13.996,13.995,142.53718794]
[1672800241811,0.72216907,13.996,13.995,149.29380008]
[1672800242216,0.72216907,13.996,13.995,93.99956515]
[1672800242435,0.72216907,13.996,13.995,146.23100008]
[1672800242843,0.72216907,13.996,13.995,93.99956515]
[1672800245466,54.36216907,13.996,13.995,93.99956515]
[1672800245688,20.72216907,13.996,13.995,93.99956515]
[1672800245900,80.14547582,13.996,13.995,14.0607627]
[1672800246117,74.36216907,13.996,13.995,14.0607627]
[1672800246321,107.77470119,13.996,13.995,0.0007627]
[1672800246761,107.77470119,13.996,13.97,33.26859143]
[1672800246762,30.0,13.995,13.97,33.26859143]
[1672800246937,30.0,13.995,13.961,120.0]
[1672800246938,53.65,13.994,13.961,120.0]
[1672800247157,0.00285715,13.985,13.964,914.10133942]
[1672800247362,0.00285715,13.985,13.965,812.5]
[1672800247363,53.68285715,13.985,13.965,812.5]
[1672800247572,5.7861639,13.985,13.966,30.0]
[1672800247895,53.68285715,13.985,13.966,30.0]
[1672800248107,0.00285715,13.985,13.966,30.0]
[1672800248320,53.68285715,13.985,13.966,30.0]
[1672800248522,0.00285715,13.985,13.966,30.0]
[1672800248732,53.68285715,13.985,13.966,30.0]
[1672800248945,0.00285715,13.985,13.966,30.0]
[1672800249168,53.68285715,13.985,13.966,30.0]
[1672800249366,20.00285715,13.985,13.966,30.0]
[1672800249571,73.68285715,13.985,13.966,30.0]
[1672800250002,79.4661639,13.985,13.966,30.0]
[1672800250211,79.4661639,13.985,13.984,0.0090112]
[1672800250212,105.32621603,13.985,13.984,0.0090112]
[1672800250414,105.32621603,13.985,13.965,30.0]
[1672800250415,30.0,13.984,13.965,30.0]
[1672800250628,30.0,13.984,13.953,120.0]
[1672800250629,0.00285715,13.977,13.953,120.0]
[1672800250964,53.71285715,13.977,13.954,121.8622]
[1672800251167,25.7861639,13.977,13.955,30.0]
[1672800251372,73.71285715,13.977,13.955,30.0]
[1672800251697,79.4961639,13.977,13.955,30.0]
[1672800251905,105.35621603,13.977,13.955,30.0]
[1672800252106,30.0,13.976,13.954,114.7022]
[1672800252322,30.0,13.974,13.954,114.7022]
[1672800252520,0.00285715,13.964,13.954,114.7022]
[1672800252734,0.00285715,13.964,13.95,796.67553942]
[1672800252735,53.76285715,13.964,13.95,796.67553942]
[1672800252949,20.00285715,13.964,13.95,796.67553942]
[1672800253156,73.76285715,13.964,13.945,120.0]
[1672800253375,73.76285715,13.964,13.946,30.0]
[1672800254215,73.76285715,13.964,13.946,150.0]
[1672800254411,73.76285715,13.964,13.946,30.0]
[1672800256095,0.00285715,13.964,13.961,10.9748749]
[1672800256523,0.00285715,13.964,13.962,10.9748749]
[1672800256729,147.62340824,14.019,13.968,0.12]
[1672800256932,147.62340824,14.019,13.97,78.00105769]
[1672800257140,180.71461226,14.017,13.972,78.00105769]
[1672800257367,153.36833235,14.014,13.974,30.0]
[1672800257585,154.84831745,14.012,13.975,812.5]
[1672800257784,7.15563507,13.976,13.975,812.5]
[1672800262744,7.15563507,13.976,13.975,823.4748749]
[1672800262923,7.15563507,13.976,13.975,812.5]
[1672800264195,0.00563507,13.976,13.975,812.5]
[1672800265686,0.00563507,13.976,13.975,823.4748749]
[1672800265906,0.00563507,13.976,13.975,812.5]
[1672800270311,53.66,13.991,13.976,30.0]
[1672800270522,53.65,13.993,13.977,30.0]
[1672800270734,7.15461115,13.978,13.977,30.0]
[1672800272418,7.15461115,13.978,13.977,40.9748749]
[1672800272735,7.15461115,13.978,13.977,30.0]
[1672800273145,7.15461115,13.978,13.977,40.9748749]
[1672800273361,7.15461115,13.978,13.977,30.0]
[1672800278847,7.15461115,13.978,13.976,812.5]
[1672800279258,7.15461115,13.977,13.976,812.5]
[1672800282622,7.15461115,13.977,13.971,30.0]
[1672800282848,7.15461115,13.977,13.971,40.9748749]
[1672800283075,7.15461115,13.972,13.971,40.9748749]
[1672800283380,118.1769,13.994,13.972,44.10274815]
[1672800283775,7.15717149,13.973,13.972,44.10274815]
[1672800284207,7.15717149,13.973,13.972,55.07762305]
[1672800285592,7.15717149,13.973,13.972,44.10274815]
[1672800285774,7.15717149,13.973,13.972,55.07762305]
[1672800286414,7.15717149,13.973,13.972,44.10274815]
[1672800286622,7.15717149,13.973,13.972,16.9527593]
[1672800287672,53.65,13.993,13.972,27.9276342]
[1672800287880,53.65,13.993,13.973,30.0]
[1672800288115,7.15665928,13.974,13.973,10.9748749]
[1672800288833,7.15665928,13.974,13.972,16.9527593]
[1672800289039,7.15665928,13.973,13.972,16.9527593]
[1672800289464,7.15665928,13.973,13.972,27.9276342]
[1672800291900,7.15665928,13.973,13.972,16.9527593]
[1672800293670,7.15665928,13.973,13.972,16.4527593]
[1672800301245,0.00065928,13.973,13.972,16.4527593]
[1672800302314,162.1212,13.987,13.973,30.0]
[1672800302516,7.15665928,13.974,13.973,30.0]
[1672800302921,7.15665928,13.974,13.972,27.4276342]
[1672800303262,108.4512,13.987,13.973,40.9748749]
[1672800303461,30.0,14.012,13.973,40.9748749]
[1672800303462,53.61,14.003,13.974,812.5]
[1672800303670,166.2122,14.011,13.976,48.03851279]
[1672800303882,7.15512307,13.977,13.976,48.03851279]
[1672800304218,36.61931926,14.01,13.977,40.9748749]
[1672800304404,53.59,14.009,13.98,395.9]
[1672800304728,5.15307583,13.981,13.98,395.9]
[1672800304938,5.15307583,13.981,13.977,30.0]
[1672800305134,53.6,14.007,13.978,20.0]
[1672800305345,20.0,14.006,13.98,30.0]
[1672800305559,7.15307583,13.981,13.98,30.0]
[1672800309047,7.15307583,13.981,13.978,20.0]
[1672800309360,7.15307583,13.979,13.976,30.0]
[1672800309771,7.15307583,13.977,13.976,30.0]
[1672800310199,7.15307583,13.977,13.973,30.0]
[1672800310401,7.15307583,13.974,13.973,30.0]
[1672800311551,7.15307583,13.974,13.968,0.12]
[1672800311973,7.15307583,13.973,13.968,0.12]
[1672800320403,16.15307583,13.974,13.972,0.0027593]
[1672800320600,91.2606556,13.973,13.972,0.0027593]
[1672800320806,91.2606556,13.973,13.963,5.1490112]
[1672800320807,30.0,13.972,13.963,5.1490112]
[1672800321242,7.15717149,13.964,13.963,5.1490112]
[1672800323128,60.91717149,13.964,13.963,5.1490112]
[1672800323669,7.15717149,13.964,13.963,5.1490112]
[1672800323860,7.15717149,13.964,13.945,114.0854]
[1672800324187,53.76,13.965,13.945,114.0854]
[1672800324188,7.15717149,13.946,13.945,114.0854]
[1672800324403,53.76,13.965,13.948,9.60928527]
[1672800324609,53.75,13.967,13.948,9.60928527]
[1672800324823,7.16948667,13.949,13.948,9.60928527]
[1672800325014,7.16948667,13.949,13.948,40.58416017]
[1672800327021,7.16948667,13.949,13.948,29.60928527]
[1672800329964,7.16948667,13.949,13.948,40.58416017]
[1672800330720,0.00948667,13.949,13.948,40.58416017]
[1672800331746,0.00948667,13.949,13.948,29.60928527]
[1672800332164,53.74,13.969,13.948,29.60928527]
[1672800332165,53.74,13.969,13.949,30.0]
[1672800332386,53.73,13.972,13.95,20.0]
[1672800332592,53.73,13.972,13.951,30.0]
[1672800332806,7.16794496,13.952,13.951,40.9748749]
[1672800333016,53.73,13.972,13.952,842.5]
[1672800333338,53.73,13.972,13.953,10.9674437]
[1672800333548,114.1548,13.973,13.954,30.0]
[1672800333763,114.1548,13.973,13.954,64.70511661]
[1672800334072,7.1664039,13.955,13.954,40.9748749]
[1672800334286,114.1548,13.973,13.955,57.53871271]
[1672800334496,114.1548,13.973,13.956,50.0]
[1672800334686,53.67,13.987,13.956,60.9748749]
[1672800334903,117.2448,13.986,13.957,57.36288968]
[1672800335119,73.68,13.985,13.958,50.0]
[1672800335329,7.1643502,13.959,13.958,50.0]
[1672800336075,0.0003502,13.959,13.958,50.0]
[1672800336473,53.69,13.983,13.959,30.0]
[1672800336686,5.98635374,13.982,13.959,30.0]
[1672800336930,7.16383696,13.96,13.959,30.0]
[1672800337128,0.00083696,13.96,13.959,50.0]
[1672800337959,53.7,13.979,13.96,30.0]
[1672800338173,7.16332379,13.961,13.96,30.0]
[1672800339104,7.16332379,13.961,13.959,50.0]
[1672800339424,7.16332379,13.96,13.959,20.0]
[1672800342274,7.16332379,13.96,13.958,20.0]
[1672800342485,7.16332379,13.959,13.958,20.0]
[1672800342691,0.00032379,13.959,13.958,20.0]
[1672800343101,53.71,13.976,13.959,30.0]
[1672800343734,7.16383696,13.96,13.959,30.0]
[1672800343949,7.16383696,13.96,13.959,50.0]
[1672800344581,7.16383696,13.96,13.959,20.0]
[1672800344790,7.16383696,13.96,13.958,20.0]
[1672800344990,7.16383696,13.959,13.958,20.0]
[1672800348476,0.00083696,13.959,13.958,30.9748749]
[1672800349609,0.00083696,13.959,13.958,20.0]
[1672800350356,53.72,13.974,13.962,0.06]
[1672800350573,113.1521,13.978,13.962,0.06]
[1672800350890,7.16229767,13.963,13.962,34.14402827]
[1672800351095,53.7,13.98,13.963,30.0]
[1672800351306,166.8521,13.98,13.963,76.7668]
[1672800351627,166.8521,13.98,13.964,56.92224355]
[1672800351839,166.8521,13.98,13.965,30.0]
[1672800352165,166.8521,13.98,13.966,20.0]
[1672800352472,7.16024632,13.967,13.966,20.0]
[1672800354441,7.16024632,13.967,13.965,20.0]
[1672800354671,7.16024632,13.966,13.965,20.0]
[1672800355410,7.16024632,13.966,13.963,30.0]
[1672800355616,7.16024632,13.966,13.964,20.0]
[1672800355946,53.7,13.979,13.964,20.0]
[1672800355947,53.7,13.979,13.965,30.0]
[1672800356132,53.7,13.979,13.966,20.0]
[1672800356342,53.7,13.979,13.967,30.0]
[1672800356548,53.7,13.979,13.968,63.63647997]
[1672800356750,53.7,13.979,13.969,30.0]
[1672800356964,53.67,13.987,13.97,48.42678578]
[1672800357186,53.67,13.988,13.971,30.0]
[1672800357399,5.98635374,13.989,13.969,30.0]
[1672800357613,7.15768378,13.972,13.968,20.0]
[1672800357816,7.15768378,13.97,13.968,20.0]
[1672800358022,7.15768378,13.969,13.953,7.16]
[1672800358237,7.15768378,13.963,13.958,20.0]
[1672800358856,7.15768378,13.963,13.956,30.0]
[1672800360139,7.15768378,13.963,13.957,20.0]
[1672800361065,0.00068378,13.963,13.957,20.0]
[1672800361279,7.16229767,13.963,13.962,11.0348749]
[1672800361493,110.0127,13.978,13.962,11.0348749]
[1672800361494,110.0127,13.978,13.962,31.0348749]
[1672800361819,110.0127,13.978,13.963,50.0]
[1672800362130,7.16178472,13.964,13.963,60.9748749]
[1672800362344,110.0127,13.978,13.964,30.0]
[1672800362560,110.0127,13.978,13.965,20.0]
[1672800362762,48.0057,13.981,13.965,20.0]
[1672800362956,7.16075905,13.966,13.965,20.0]
[1672800363167,172.3798,13.98,13.966,30.0]
[1672800363499,172.3798,13.98,13.967,20.0]
[1672800363925,7.15973366,13.968,13.967,20.0]
[1672800366846,7.15973366,13.968,13.967,30.9748749]
[1672800367287,7.15973366,13.968,13.967,20.0]
[1672800368658,7.15973366,13.968,13.967,30.9748749]
[1672800370013,165.0127,13.98,13.968,30.0]
[1672800370229,53.67,13.987,13.969,835.274]
[1672800370454,7.15870857,13.97,13.969,1008.5579749]
[1672800370657,7.15870857,13.97,13.969,950.1953]
[1672800370978,7.15870857,13.97,13.969,961.1701749]
[1672800371192,7.15870857,13.97,13.969,843.4748749]
[1672800372440,0.00870857,13.97,13.969,920.13498504]
[1672800374237,0.00870857,13.97,13.969,843.4748749]
[1672800374660,0.00870857,13.97,13.969,886.67164478]
[1672800374875,0.00870857,13.97,13.969,920.13498504]
[1672800375282,0.00870857,13.97,13.969,107.63498504]
[1672800375496,0.00870857,13.97,13.969,63.19676988]
[1672800375812,0.00870857,13.97,13.969,20.0]
[1672800376025,0.00870857,13.97,13.966,68.7924]
[1672800376432,0.00870857,13.967,13.966,68.7924]
[1672800376637,53.68,13.984,13.967,40.96616633]
[1672800376862,99.2246,13.986,13.969,30.0]
[1672800377077,7.15870857,13.97,13.969,30.0]
[1672800377582,53.68,13.984,13.97,30.0]
[1672800377790,7.15819614,13.971,13.97,49.79]
[1672800378011,53.68,13.986,13.97,49.79]
[1672800378012,118.1941,13.987,13.972,30.0]
[1672800378444,118.1941,13.987,13.973,3.81770341]
[1672800378650,7.15665928,13.974,13.973,10.9748749]
[1672800378864,5.928e-05,13.974,13.973,10.9748749]
[1672800379191,5.928e-05,13.974,13.973,142.4316749]
[1672800380224,5.928e-05,13.974,13.973,10.9748749]
[1672800380438,5.928e-05,13.974,13.969,24.6635]
[1672800380644,53.68,13.985,13.971,10.9748749]
[1672800380853,7.15768378,13.972,13.969,24.6635]
[1672800381064,7.15768378,13.972,13.967,10.9748749]
[1672800381274,7.15768378,13.97,13.967,10.9748749]
[1672800381501,53.69,13.983,13.967,10.9748749]
[1672800381502,7.15768378,13.968,13.967,10.9748749]
[1672800383698,7.15768378,13.968,13.962,0.06]
[1672800383903,7.15768378,13.963,13.962,0.06]
[1672800384552,7.15768378,13.963,13.962,11.0348749]
[1672800384740,7.15768378,13.963,13.962,0.06]
[1672800385692,60.91768378,13.963,13.948,9.60928527]
[1672800385906,53.77,13.962,13.953,10.9748749]
[1672800386221,7.16691751,13.954,13.948,9.60928527]
[1672800386449,30.0,13.971,13.948,9.60928527]
[1672800386450,7.16691751,13.949,13.948,9.60928527]
[1672800387802,7.16691751,13.949,13.948,29.60928527]
[1672800388019,7.16691751,13.949,13.948,9.60928527]
[1672800388428,7.16691751,13.949,13.948,20.58416017]
[1672800389485,7.16691751,13.949,13.948,29.60928527]
[1672800389897,7.16691751,13.949,13.948,40.58416017]
[1672800392211,7.16691751,13.949,13.948,29.60928527]
[1672800392419,7.16691751,13.949,13.948,40.58416017]
[1672800393674,7.16691751,13.949,13.948,29.60928527]
[1672800396108,7.16691751,13.949,13.948,40.58416017]
[1672800396634,7.16691751,13.949,13.948,29.60928527]
[1672800397048,53.78,13.96,13.949,9.57375863]
[1672800397265,47.4539,13.962,13.949,9.57375863]
[1672800397266,53.77,13.961,13.949,9.57375863]
[1672800397473,53.77,13.961,13.95,10.9748749]
[1672800397670,7.16845879,13.951,13.95,10.9748749]
[1672800399665,7.16845879,13.951,13.949,9.57375863]
[1672800399874,7.16845879,13.951,13.95,10.9748749]
[1672800400099,53.78,13.96,13.95,10.9748749]
[1672800400415,7.16845879,13.951,13.95,10.9748749]
[1672800404934,7.16845879,13.951,13.949,9.57375863]
[1672800405359,7.16845879,13.95,13.949,9.57375863]
[1672800405546,7.16845879,13.95,13.949,29.57375863]
[1672800408591,7.16845879,13.95,13.949,40.54863353]
[1672800409860,7.16845879,13.95,13.949,29.57375863]
[1672800413021,7.16845879,13.95,13.949,40.54863353]
[1672800413231,7.16845879,13.95,13.949,29.57375863]
[1672800417100,30.0,13.949,13.948,9.60928527]
[1672800417311,37.16845879,13.949,13.935,166.6508]
[1672800417544,7.16845879,13.942,13.94,10.9748749]
[1672800417944,7.16845879,13.942,13.935,166.6508]
[1672800418155,53.81,13.952,13.943,9.29148313]
[1672800418372,7.17205767,13.944,13.943,9.29148313]
[1672800418596,7.17205767,13.944,13.943,20.26635803]
[1672800418807,7.17205767,13.944,13.943,9.29148313]
[1672800420697,11.48430495,13.95,13.943,9.29148313]
[1672800421009,7.17205767,13.944,13.943,9.29148313]
[1672800424995,7.17205767,13.944,13.941,5.1490112]
[1672800424996,30.0,13.943,13.941,5.1490112]
[1672800425407,7.17205767,13.942,13.941,1.12e-05]
[1672800425622,30.0,13.941,13.926,164.7194]
[1672800426045,7.17205767,13.927,13.926,164.7194]
[1672800426258,7.17205767,13.927,13.923,10.9748749]
[1672800426457,7.17205767,13.924,13.923,10.9748749]
[1672800426668,52.78105046,13.94,13.926,3.64566073]
[1672800426877,7.18081287,13.927,13.926,3.64566073]
[1672800429627,7.18081287,13.927,13.926,23.64566073]
[1672800429824,7.18081287,13.927,13.926,34.62053563]
[1672800430148,7.18081287,13.927,13.926,23.64566073]
[1672800430767,7.18081287,13.927,13.926,3.64566073]
[1672800431709,7.18081287,13.927,13.913,159.33627737]
[1672800431710,23.64,13.926,13.908,806.80180344]
[1672800431924,53.91,13.925,13.908,806.80180344]
[1672800432148,7.18081287,13.909,13.908,806.80180344]
[1672800433092,101.4887,13.922,13.91,2.2496917]
[1672800433299,30.0,13.922,13.91,2.2496917]
[1672800433503,7.18907261,13.911,13.91,2.2496917]
[1672800438246,30.0,13.92,13.918,8.93358941]
[1672800438648,7.18494037,13.919,13.918,8.93358941]
[1672800441507,30.0,13.918,13.91,2.2496917]
[1672800441700,7.18494037,13.911,13.91,2.2496917]
[1672800442227,48.195,13.922,13.913,3.50792752]
[1672800442435,53.91,13.926,13.913,3.50792752]
[1672800442652,7.18752247,13.914,13.913,3.50792752]
[1672800443714,61.13752247,13.914,13.91,2.2496917]
[1672800443923,79.1786,13.924,13.91,2.2496917]
[1672800443924,7.18752247,13.911,13.91,2.2496917]
[1672800444135,7.18752247,13.911,13.91,9.17e-05]
[1672800444336,7.18752247,13.911,13.906,120.0]
[1672800444745,7.18752247,13.907,13.906,120.0]
[1672800454327,7.18752247,13.907,13.904,120.0]
[1672800454539,7.18752247,13.905,13.904,120.0]
[1672800454750,7.18752247,13.905,13.904,117.5]
[1672800455483,7.18752247,13.905,13.899,165.6473]
[1672800455692,7.18752247,13.905,13.9,20.0]
[1672800455905,7.18752247,13.901,13.9,20.0]
[1672800456115,7.18752247,13.901,13.899,20.0]
[1672800456539,7.18752247,13.9,13.899,20.0]
[1672800456868,48.5112,13.912,13.9,2.15745569]
[1672800457077,7.19424461,13.901,13.9,2.15745569]
[1672800457282,53.95,13.914,13.904,3.42505381]
[1672800457712,7.19217492,13.905,13.904,3.42505381]
[1672800458220,53.95,13.914,13.912,8.56210797]
[1672800458422,7.18803911,13.913,13.912,8.56210797]
[1672800459079,37.18803911,13.913,13.912,8.56210797]
[1672800459596,30.0,13.912,13.904,3.42505381]
[1672800459821,30.0,13.91,13.9,2.15745569]
[1672800460129,7.18803911,13.901,13.9,2.15745569]
[1672800461702,58.95496103,13.901,13.9,2.15745569]
[1672800462118,7.18803911,13.901,13.9,2.15745569]
[1672800463272,57.86244476,13.901,13.9,2.15745569]
[1672800463911,7.18803911,13.901,13.9,2.15745569]
[1672800465180,7.18803911,13.901,13.9,13.13233059]
[1672800465380,7.18803911,13.901,13.9,33.13233059]
[1672800468432,53.95,13.916,13.9,33.13233059]
[1672800468433,104.93090163,13.945,13.905,54.46499311]
[1672800468649,187.8965,13.934,13.906,20.0]
[1672800468853,320.98758655,13.967,13.907,111.11043411]
[1672800469049,104.93090163,13.956,13.909,81.11043411]
[1672800469261,170.8715,13.955,13.911,81.11043411]
[1672800469485,264.2124,13.955,13.911,81.11043411]
[1672800469702,7.18855582,13.912,13.911,522.08027437]
[1672800469910,5.582e-05,13.912,13.911,522.08027437]